bitfinex-derivatives/quotes_SOLF0:USTF0_20240911
["timestamp","ask_amount","ask_price","bid_price","bid_amount"]
[1726062271460,29.21,131.29,131.18,29.21]
[1726062271664,3.8091,131.26,131.21,3.8103]
[1726062272266,3.8088,131.27,131.18,29.21]
[1726062272468,30.4289,131.31,131.2,29.21]
[1726062272663,30.4289,131.31,131.23,3.8098]
[1726062272664,3.8084,131.28,131.23,3.8098]
[1726062272867,30.4289,131.31,131.21,2.7814]
[1726062273068,30.4289,131.31,131.22,1.3513]
[1726062273275,3.8082,131.29,131.24,3.8093]
[1726062273570,3.8082,131.29,131.22,1.3513]
[1726062273770,30.4289,131.31,131.22,1.3513]
[1726062273969,3.8086,131.28,131.24,3.8094]
[1726062274767,30.4289,131.31,131.22,1.3513]
[1726062274972,29.21,131.29,131.22,1.3513]
[1726062275169,3.8092,131.26,131.22,1.3513]
[1726062275369,1.2189,131.31,131.22,1.3513]
[1726062275566,29.21,131.32,131.22,1.3513]
[1726062275872,3.89857383,131.33,131.23,29.21]
[1726062276170,29.21,131.34,131.23,29.21]
[1726062276369,30.4302,131.37,131.22,1.3513]
[1726062276665,1.2202,131.37,131.27,29.21]
[1726062276872,5.08291301,131.37,131.28,1.4299]
[1726062277370,3.8069,131.34,131.29,3.8081]
[1726062277872,5.08291301,131.37,131.28,1.4299]
[1726062278068,3.8066,131.35,131.3,3.8076]
[1726062278665,3.807,131.33,131.28,5.2383]
[1726062278972,29.21,131.36,131.28,1.4299]
[1726062279171,3.8069,131.34,131.29,3.808]
[1726062279365,3.8069,131.34,131.28,1.4299]
[1726062279566,5.08291301,131.37,131.28,1.4299]
[1726062280264,5.08291301,131.37,131.29,1.3761]
[1726062280466,224.0,131.42,131.29,1.3761]
[1726062280467,29.21,131.41,131.29,30.5861]
[1726062280666,30.43,131.41,131.29,30.5861]
[1726062281068,30.43,131.41,131.31,29.21]
[1726062281768,30.43,131.41,131.29,30.5861]
[1726062281969,3.8063,131.36,131.31,3.8075]
[1726062282278,30.43,131.41,131.29,30.5861]
[1726062282776,30.43,131.41,131.31,29.21]
[1726062282777,1.22,131.41,131.31,29.21]
[1726062283076,3.8051,131.4,131.35,3.8063]
[1726062283378,29.21,131.43,131.33,29.21]
[1726062284369,3.8049,131.4,131.35,3.8062]
[1726062284574,3.84219422,131.45,131.33,29.21]
[1726062284772,30.43,131.46,131.35,29.21]
[1726062284973,34.18904348,131.46,131.36,2.6256]
[1726062286078,3.8047,131.41,131.36,2.6256]
[1726062286275,34.18904348,131.46,131.36,2.6256]
[1726062286672,4.97904348,131.46,131.36,4.0069]
[1726062286866,4.97904348,131.46,131.37,29.21]
[1726062287081,3.75904348,131.46,131.37,29.21]
[1726062287284,29.21,131.48,131.37,29.21]
[1726062287576,1.2177,131.52,131.41,3.8044]
[1726062287577,3.8029,131.47,131.41,3.8044]
[1726062287768,29.21,131.48,131.37,29.21]
[1726062287973,3.88123334,131.47,131.37,29.21]
[1726062288374,3.8032,131.46,131.41,3.8045]
[1726062289277,3.8035,131.45,131.4,3.8048]
[1726062289484,29.21,131.5,131.37,29.21]
[1726062289672,33.05773505,131.5,131.37,29.21]
[1726062289876,33.05773505,131.5,131.4,3.8049]
[1726062290181,33.05773505,131.5,131.37,29.21]
[1726062290376,3.8037,131.45,131.37,29.21]
[1726062290575,29.21,131.48,131.37,29.21]
[1726062290782,29.21,131.46,131.36,4.0069]
[1726062291470,3.8037,131.45,131.4,3.8047]
[1726062291869,3.8034,131.46,131.37,29.21]
[1726062292075,3.8034,131.46,131.41,3.8045]
[1726062292381,29.21,131.48,131.37,29.21]
[1726062292579,3.78168531,131.47,131.4,3.8049]
[1726062292774,3.78168531,131.47,131.37,29.21]
[1726062292972,3.8043,131.43,131.37,29.21]
[1726062293175,29.21,131.46,131.36,7.8128]
[1726062293385,29.21,131.44,131.36,7.8128]
[1726062293584,29.21,131.44,131.36,4.0069]
[1726062293784,29.21,131.44,131.36,2.6256]
[1726062294477,3.8054,131.39,131.36,2.6256]
[1726062294673,29.21,131.44,131.36,2.6256]
[1726062295083,3.8048,131.41,131.37,3.8058]
[1726062295383,29.21,131.44,131.37,3.8058]
[1726062295585,3.8044,131.42,131.37,3.8058]
[1726062295781,3.8044,131.42,131.38,3.8054]
[1726062296083,29.21,131.44,131.36,2.6256]
[1726062296284,29.21,131.44,131.37,3.8057]
[1726062296584,3.78168531,131.47,131.36,2.6256]
[1726062296585,29.21,131.46,131.36,2.6256]
[1726062296779,3.804,131.44,131.39,3.8051]
[1726062296979,3.78168531,131.47,131.37,29.21]
[1726062297377,3.8046,131.42,131.37,3.8057]
[1726062297577,3.8046,131.42,131.36,2.6256]
[1726062297773,29.21,131.46,131.36,2.6256]
[1726062298389,3.8045,131.42,131.38,3.8054]
[1726062298889,29.21,131.46,131.39,3.805]
[1726062299483,29.21,131.46,131.36,2.6256]
[1726062299689,3.78168531,131.47,131.37,29.21]
[1726062299983,3.804,131.44,131.37,29.21]
[1726062300186,3.78168531,131.47,131.37,29.21]
[1726062300485,3.78168531,131.47,131.39,29.21]
[1726062300690,3.78168531,131.47,131.4,3.8047]
[1726062301186,3.78168531,131.47,131.39,29.21]
[1726062301383,3.78168531,131.47,131.37,29.21]
[1726062301691,29.21,131.44,131.33,33.0167]
[1726062301988,1.2183,131.43,131.33,29.21]
[1726062302184,1.2183,131.43,131.38,3.8053]
[1726062302488,32.99168531,131.47,131.36,29.21]
[1726062302684,3.8038,131.45,131.4,3.8049]
[1726062302888,1.2182,131.46,131.37,2.7259]
[1726062303287,3.8039,131.44,131.37,2.7259]
[1726062303594,3.78168531,131.47,131.38,29.21]
[1726062303980,32.99168531,131.47,131.37,4.082]
[1726062304196,29.21,131.45,131.34,29.21]
[1726062304387,3.8054,131.39,131.34,29.21]
[1726062304586,3.80015226,131.39,131.34,29.21]
[1726062304785,29.21,131.45,131.32,29.21]
[1726062304986,32.99168531,131.47,131.29,29.21]
[1726062304987,29.21,131.42,131.29,29.21]
[1726062305191,29.21,131.42,131.32,29.21]
[1726062305392,3.8038,131.44,131.39,3.805]
[1726062305685,32.99168531,131.47,131.36,29.21]
[1726062305887,1.20753404,131.46,131.36,29.21]
[1726062306389,3.8039,131.44,131.39,3.805]
[1726062306594,3.8039,131.44,131.36,29.21]
[1726062306595,3.78168531,131.47,131.38,29.21]
[1726062306893,3.75818486,131.48,131.41,29.21]
[1726062307193,1.2182,131.5,131.43,29.21]
[1726062307422,1.2182,131.5,131.41,29.21]
[1726062307587,3.82176031,131.49,131.41,29.21]
[1726062307983,1.2182,131.5,131.41,29.21]
[1726062308182,5.00836293,131.5,131.39,2.7194]
[1726062308388,29.21,131.48,131.39,2.7194]
[1726062308590,29.21,131.46,131.2,33.08795655]
[1726062308887,29.21,131.42,131.31,29.21]
[1726062309093,3.8066,131.35,131.3,4.143]
[1726062309296,29.21,131.39,131.3,2.7194]
[1726062309591,29.21,131.37,131.26,29.21]
[1726062309798,29.21,131.37,131.27,1.296]
[1726062309999,32.98390458,131.39,131.27,1.296]
[1726062310185,3.8066,131.35,131.28,3.8082]
[1726062310388,47.57,131.38,131.27,48.866]
[1726062310585,1.2188,131.41,131.27,48.866]
[1726062310790,3.8079,131.3,131.27,1.296]
[1726062310990,3.8079,131.3,131.24,3.8095]
[1726062311194,3.81617962,131.32,131.23,1.3102]
[1726062311395,47.57,131.31,131.23,1.3102]
[1726062311591,3.75486177,131.3,131.23,1.3102]
[1726062311794,3.86531008,131.29,131.23,1.3102]
[1726062312098,3.8084,131.28,131.23,1.3102]
[1726062312395,51.47301485,131.31,131.23,1.3102]
[1726062312598,47.57,131.31,131.23,1.3102]
[1726062312898,3.87470467,131.32,131.23,1.3102]
[1726062313095,47.57,131.33,131.23,1.3102]
[1726062313289,51.32352488,131.33,131.23,1.3102]
[1726062313694,47.57,131.31,131.23,1.3102]
[1726062314399,3.75352488,131.33,131.23,1.3102]
[1726062314598,3.8074,131.32,131.26,3.8088]
[1726062314800,3.75352488,131.33,131.26,3.8088]
[1726062315104,3.8073,131.32,131.26,3.8088]
[1726062315298,3.75352488,131.33,131.27,3.8085]
[1726062315498,7.56072488,131.33,131.27,3.8085]
[1726062315699,3.8072,131.33,131.23,1.3102]
[1726062316195,3.71762576,131.33,131.23,1.3102]
[1726062316594,3.8076,131.31,131.25,3.8092]
[1726062316799,3.71762576,131.33,131.23,1.3102]
[1726062317106,3.8071,131.33,131.23,1.3102]
[1726062317299,51.34210065,131.34,131.23,1.3102]
[1726062317495,47.57,131.36,131.31,3.8073]
[1726062317810,3.8055,131.38,131.29,47.57]
[1726062318007,3.8055,131.38,131.33,3.8067]
[1726062318304,3.8053,131.39,131.3,2.7279]
[1726062318697,47.57,131.4,131.33,3.8068]
[1726062318900,3.8053,131.39,131.3,2.7279]
[1726062319405,47.57,131.4,131.33,3.8068]
[1726062319798,47.57,131.4,131.32,3.8072]
[1726062319994,47.57,131.4,131.3,2.7279]
[1726062320601,47.57,131.38,131.3,2.7279]
[1726062320807,3.8073,131.32,131.27,3.8085]
[1726062321003,47.57,131.36,131.25,1.4238]
[1726062321602,47.57,131.34,131.25,1.4238]
[1726062321800,47.57,131.36,131.25,1.4238]
[1726062322001,47.57,131.33,131.25,1.4238]
[1726062322508,5.10467632,131.41,131.27,47.57]
[1726062322697,47.57,131.39,131.27,47.57]
[1726062323808,3.8062,131.36,131.31,3.8073]
[1726062324003,47.57,131.39,131.31,3.8073]
[1726062324209,47.57,131.39,131.27,47.57]
[1726062324507,3.8061,131.36,131.31,3.8074]
[1726062324703,47.57,131.39,131.27,47.57]
[1726062325400,47.57,131.37,131.29,3.8081]
[1726062325600,47.57,131.37,131.25,48.9938]
[1726062326005,47.57,131.4,131.25,48.9938]
[1726062326006,3.8063,131.36,131.3,3.8078]
[1726062326303,47.57,131.38,131.27,47.57]
[1726062326897,47.57,131.38,131.25,48.9938]
[1726062327701,3.8066,131.35,131.3,3.8077]
[1726062327906,47.57,131.38,131.25,48.9938]
[1726062328104,47.57,131.4,131.29,47.57]
[1726062328308,47.57,131.4,131.3,1.3812]
[1726062329302,47.57,131.4,131.31,48.9023]
[1726062329507,609.57,131.45,131.33,47.57]
[1726062329707,610.7914,131.45,131.33,47.57]
[1726062330107,3.8048,131.41,131.36,3.806]
[1726062330309,3.8048,131.41,131.33,47.57]
[1726062330310,3.85786689,131.42,131.33,47.57]
[1726062330509,610.7914,131.45,131.33,47.57]
[1726062330807,610.7914,131.45,131.31,48.9023]
[1726062330808,47.57,131.41,131.31,48.9023]
[1726062331008,47.57,131.41,131.31,1.3323]
[1726062331009,51.47280108,131.41,131.31,1.3323]
[1726062331212,3.8066,131.35,131.31,1.3323]
[1726062331408,47.57,131.38,131.3,1.3812]
[1726062331907,3.8069,131.34,131.3,1.3812]
[1726062332413,47.57,131.36,131.25,50.2933]
[1726062332717,3.8075,131.32,131.27,3.8085]
[1726062333101,3.80123495,131.33,131.25,2.7233]
[1726062333302,47.57,131.36,131.25,50.2933]
[1726062333507,3.8071,131.33,131.28,3.8082]
[1726062333721,47.57,131.36,131.25,50.2933]
[1726062333918,47.57,131.36,131.26,3.8088]
[1726062334118,47.57,131.36,131.25,50.2933]
[1726062334119,47.57,131.34,131.25,2.7233]
[1726062334325,1.2214,131.37,131.25,50.2933]
[1726062334326,47.57,131.36,131.25,50.2933]
[1726062334632,47.57,131.36,131.28,3.8083]
[1726062334817,47.57,131.36,131.26,1.3122]
[1726062335223,47.57,131.34,131.26,1.3122]
[1726062335429,47.57,131.32,131.24,1.2977]
[1726062335721,47.57,131.32,131.2,47.57]
[1726062335722,3.8086,131.28,131.23,3.8098]
[1726062335928,51.45845767,131.32,131.23,3.8098]
[1726062336118,47.57,131.34,131.22,47.57]
[1726062336318,3.76505555,131.32,131.24,3.8093]
[1726062336516,3.76505555,131.32,131.23,1.2909]
[1726062336725,3.87783196,131.34,131.24,47.57]
[1726062336923,47.57,131.36,131.27,3.8084]
[1726062337220,47.57,131.36,131.24,48.8762]
[1726062338128,47.57,131.34,131.24,1.3062]
[1726062338331,47.57,131.32,131.23,1.2909]
[1726062339023,3.78410562,131.34,131.24,47.57]
[1726062339322,48.7914,131.37,131.25,1.4024]
[1726062339524,47.57,131.34,131.25,1.4024]
[1726062339725,51.30067451,131.34,131.25,1.4024]
[1726062340318,3.73067451,131.34,131.25,1.4024]
[1726062340527,1.2214,131.37,131.26,47.57]
[1726062340718,47.57,131.4,131.29,47.57]
[1726062341028,3.8056,131.38,131.33,3.8069]
[1726062341425,47.57,131.4,131.3,1.3875]
[1726062341621,51.316292,131.4,131.31,3.8073]
[1726062342129,3.8062,131.36,131.3,5.1951]
[1726062342323,47.57,131.38,131.3,1.3875]
[1726062343119,3.8062,131.36,131.31,3.8073]
[1726062343325,51.316292,131.4,131.3,1.3875]
[1726062343518,47.57,131.4,131.31,47.57]
[1726062343724,3.8058,131.37,131.32,3.8072]
[1726062343928,47.57,131.4,131.3,1.3875]
[1726062343929,47.57,131.38,131.3,1.3875]
[1726062344131,3.806,131.37,131.32,3.807]
[1726062344520,47.57,131.4,131.3,1.3875]
[1726062344830,3.8054,131.39,131.3,48.9575]
[1726062345322,3.8054,131.39,131.34,3.8066]
[1726062345518,7.54338101,131.41,131.32,47.57]
[1726062345728,3.73858101,131.41,131.32,47.57]
[1726062345931,47.57,131.42,131.35,3.8062]
[1726062346128,3.72335592,131.41,131.32,47.57]
[1726062346630,47.57,131.42,131.3,48.9575]
[1726062346832,47.57,131.38,131.3,1.3875]
[1726062347222,51.33980269,131.38,131.27,1.4021]
[1726062347424,47.57,131.36,131.27,1.4021]
[1726062347632,47.57,131.33,131.26,1.3108]
[1726062347827,47.57,131.33,131.14,171.88043245]
[1726062347828,47.57,131.33,131.21,2.7088]
[1726062348025,47.57,131.33,131.21,4.0196]
[1726062348430,5.08742619,131.37,131.21,4.0196]
[1726062348431,47.57,131.31,131.21,4.0196]
[1726062348631,47.57,131.29,131.21,4.0196]
[1726062348834,3.8086,131.28,131.21,4.0196]
[1726062349036,47.57,131.31,131.21,4.0196]
[1726062349234,47.57,131.33,131.22,47.57]
[1726062349634,3.8075,131.32,131.25,3.8092]
[1726062349828,47.57,131.33,131.25,3.8092]
[1726062350033,3.87338348,131.32,131.25,3.8092]
[1726062350240,47.57,131.33,131.22,47.57]
[1726062350438,51.4361428,131.33,131.22,47.57]
[1726062350838,3.8079,131.3,131.24,3.8094]
[1726062351537,3.8082,131.29,131.23,3.8098]
[1726062351836,47.57,131.29,131.21,2.6062]
[1726062352239,47.57,131.29,131.17,47.57]
[1726062352240,47.57,131.26,131.18,5.1929]
[1726062352440,3.81,131.23,131.16,1.3621]
[1726062352637,47.57,131.24,131.16,3.8118]
[1726062352837,47.57,131.22,131.15,1.3818]
[1726062353138,3.8111,131.19,131.15,1.3818]
[1726062353441,47.57,131.22,131.12,2.7326]
[1726062353943,47.57,131.2,131.12,1.3705]
[1726062354531,1.2198,131.21,131.12,1.3705]
[1726062354736,47.57,131.2,131.12,1.3705]
[1726062354939,3.8115,131.18,131.12,5.1835]
[1726062355137,7.59599458,131.18,131.12,5.1835]
[1726062355436,3.80129794,131.18,131.1,1.3818]
[1726062355743,47.57,131.18,131.1,1.3818]
[1726062355939,3.78299313,131.17,131.1,1.3818]
[1726062356339,47.57,131.18,131.1,1.3818]
[1726062356546,3.81845869,131.18,131.1,1.3818]
[1726062356849,47.57,131.17,131.1,1.3818]
[1726062357046,3.71854496,131.18,131.1,1.3818]
[1726062357241,48.7898,131.21,131.1,1.3818]
[1726062357446,47.57,131.19,131.1,1.3818]
[1726062357634,51.39036544,131.19,131.1,1.3818]
[1726062357945,51.39036544,131.19,131.12,3.813]
[1726062358151,51.39036544,131.19,131.1,1.3818]
[1726062358344,48.7898,131.21,131.1,48.9518]
[1726062358648,48.7898,131.21,131.11,1.3159]
[1726062359148,3.90684555,131.26,131.11,1.3159]
[1726062359149,47.57,131.23,131.12,47.57]
[1726062359355,48.792,131.25,131.14,47.57]
[1726062360444,48.792,131.25,131.18,3.8112]
[1726062360647,47.57,131.27,131.16,47.57]
[1726062360841,47.57,131.29,131.18,47.57]
[1726062361048,3.8085,131.28,131.22,3.8099]
[1726062361349,47.57,131.31,131.2,47.57]
[1726062361547,47.57,131.31,131.2,48.9049]
[1726062361745,3.8082,131.29,131.2,48.9049]
[1726062362137,3.84829181,131.3,131.2,48.9049]
[1726062362445,224.0,131.4,131.26,47.57]
[1726062362643,47.57,131.38,131.27,1.3274]
[1726062362841,3.8069,131.34,131.27,5.1359]
[1726062363046,47.57,131.36,131.27,1.3274]
[1726062363250,47.57,131.38,131.27,1.3274]
[1726062364646,3.8058,131.37,131.3,3.8076]
[1726062365249,47.57,131.38,131.28,1.3141]
[1726062365250,3.80047234,131.36,131.28,1.3141]
[1726062365445,47.57,131.38,131.28,1.3141]
[1726062365652,47.57,131.4,131.23,47.57]
[1726062365840,47.57,131.4,131.21,2.6896]
[1726062365841,47.57,131.3,131.21,2.6896]
[1726062366045,51.29085936,131.3,131.21,2.6896]
[1726062366550,47.57,131.3,131.21,2.6896]
[1726062366745,51.30038244,131.3,131.21,2.6896]
[1726062367467,3.8095,131.25,131.19,5.2301]
[1726062367657,47.57,131.26,131.16,47.57]
[1726062367844,47.57,131.26,131.17,3.8115]
[1726062368047,47.57,131.24,131.17,3.8115]
[1726062368656,3.8101,131.23,131.17,3.8115]
[1726062369050,3.8101,131.23,131.18,3.8113]
[1726062369243,47.57,131.24,131.14,50.3262]
[1726062369449,3.75057138,131.25,131.14,50.3262]
[1726062369450,47.57,131.22,131.14,2.7562]
[1726062369651,47.57,131.24,131.14,2.7562]
[1726062369850,3.8101,131.23,131.14,50.3262]
[1726062370046,5.09747609,131.32,131.14,50.3262]
[1726062370047,51.33544151,131.25,131.14,50.3262]
[1726062370254,47.57,131.25,131.14,50.3262]
[1726062370555,47.57,131.27,131.16,47.57]
[1726062370857,47.57,131.27,131.14,2.7562]
[1726062370858,47.57,131.29,131.19,47.57]
[1726062371452,3.8087,131.28,131.19,47.57]
[1726062371651,47.57,131.29,131.19,47.57]
[1726062371958,3.8089,131.27,131.19,47.57]
[1726062372157,47.57,131.29,131.16,47.57]
[1726062372452,3.8093,131.25,131.16,47.57]
[1726062372658,47.57,131.27,131.16,47.57]
[1726062372859,47.57,131.25,131.14,50.3262]
[1726062373153,3.8093,131.25,131.14,50.3262]
[1726062373458,47.57,131.27,131.14,50.3262]
[1726062373751,47.57,131.27,131.14,2.7562]
[1726062373957,47.57,131.23,131.15,3.812]
[1726062374153,47.57,131.23,130.98,3.16300947]
[1726062374154,3.8428964,131.23,130.98,3.16300947]
[1726062374350,47.57,131.27,131.06,47.57]
[1726062374351,47.57,131.17,131.06,47.57]
[1726062374755,3.8119,131.16,131.08,47.57]
[1726062374958,3.7387532,131.18,131.08,47.57]
[1726062375461,47.57,131.19,131.08,47.57]
[1726062375858,3.8116,131.17,131.08,47.57]
[1726062376058,47.57,131.19,131.08,47.57]
[1726062376755,47.57,131.19,131.12,3.8128]
[1726062377061,3.8115,131.18,131.12,3.8128]
[1726062377259,338.0,131.31,131.12,47.57]
[1726062377457,47.57,131.25,131.14,47.57]
[1726062377660,3.8104,131.22,131.14,47.57]
[1726062377962,3.8104,131.22,131.16,3.8117]
[1726062378265,3.8104,131.21,131.16,3.8117]
[1726062378459,47.57,131.25,131.14,47.57]
[1726062378660,47.57,131.27,131.16,47.57]
[1726062378860,3.8086,131.28,131.18,47.57]
[1726062379059,51.4379118,131.3,131.18,47.57]
[1726062379260,47.57,131.3,131.18,47.57]
[1726062379765,3.8089,131.27,131.18,47.57]
[1726062379952,51.29531949,131.3,131.18,47.57]
[1726062380362,47.57,131.3,131.18,47.57]
[1726062380662,47.57,131.32,131.21,47.57]
[1726062381067,3.8082,131.29,131.21,47.57]
[1726062381364,47.57,131.32,131.22,1.3445]
[1726062381671,3.8074,131.32,131.23,47.57]
[1726062381858,47.57,131.34,131.24,1.2963]
[1726062382054,3.8075,131.31,131.24,1.2963]
[1726062382260,47.57,131.34,131.24,1.2963]
[1726062383259,47.57,131.36,131.25,47.57]
[1726062384160,3.8072,131.33,131.25,47.57]
[1726062384362,47.57,131.36,131.25,47.57]
[1726062384559,3.8073,131.32,131.27,3.8087]
[1726062384767,47.57,131.34,131.24,1.2963]
[1726062384960,47.57,131.32,131.24,1.2963]
[1726062385457,47.57,131.32,131.22,2.6763]
[1726062386458,3.8088,131.27,131.22,2.6763]
[1726062386658,47.57,131.32,131.22,2.6763]
[1726062387172,3.8081,131.29,131.24,3.8094]
[1726062387570,3.8085,131.28,131.22,6.4862]
[1726062387870,47.57,131.32,131.22,2.6763]
[1726062388173,3.808,131.3,131.24,3.8094]
[1726062388362,47.57,131.32,131.24,3.8094]
[1726062388562,51.38971959,131.34,131.22,2.6763]
[1726062388762,47.57,131.29,131.22,2.6763]
[1726062388968,47.57,131.27,131.18,1.3964]
[1726062389172,3.8094,131.25,131.2,3.8105]
[1726062389470,47.57,131.27,131.19,1.3239]
[1726062389666,51.3783,131.29,131.24,3.8095]
[1726062389874,47.57,131.32,131.24,3.8095]
[1726062390276,3.808,131.3,131.24,3.8095]
[1726062390476,47.57,131.32,131.24,3.8095]
[1726062390678,51.30828934,131.32,131.23,3.8097]
[1726062391075,51.30828934,131.32,131.22,3.8101]
[1726062391384,51.30828934,131.32,131.19,1.3239]
[1726062391385,47.57,131.29,131.19,1.3239]
[1726062391583,47.57,131.34,131.2,3.8105]
[1726062391772,47.57,131.28,131.19,1.3239]
[1726062392178,3.8092,131.26,131.21,3.8103]
[1726062392787,47.57,131.3,131.19,48.8939]
[1726062393380,3.8087,131.27,131.19,48.8939]
[1726062393585,51.30219285,131.3,131.19,1.3239]
[1726062393786,3.8088,131.27,131.22,3.8101]
[1726062394381,224.0,131.39,131.19,1.3239]
[1726062394581,47.57,131.33,131.21,47.57]
[1726062394885,3.8083,131.29,131.24,3.8095]
[1726062395092,1.20118314,131.35,131.21,47.57]
[1726062395281,1.20118314,131.35,131.26,47.57]
[1726062395474,4.95823993,131.35,131.27,2.8414]
[1726062395780,52.52823993,131.35,131.27,2.8414]
[1726062396479,3.8072,131.33,131.27,2.8414]
[1726062396680,52.52823993,131.35,131.27,6.65]
[1726062396877,52.52823993,131.35,131.27,2.8414]
[1726062397077,48.77118314,131.35,131.27,2.8414]
[1726062397384,3.76201132,131.34,131.27,2.8414]
[1726062397585,48.77118314,131.35,131.27,2.8414]
[1726062397784,3.8072,131.33,131.27,2.8414]
[1726062397978,48.77118314,131.35,131.27,2.8414]
[1726062398178,3.73371428,131.34,131.27,2.8414]
[1726062398385,3.73371428,131.34,131.21,47.57]
[1726062398589,47.57,131.32,131.22,2.6925]
[1726062398883,48.77118314,131.35,131.24,47.57]
[1726062399085,48.77118314,131.35,131.25,1.4288]
[1726062399593,52.6530879,131.35,131.25,1.4288]
[1726062399883,47.57,131.32,131.22,2.6925]
[1726062400086,47.57,131.3,131.22,2.6925]
[1726062400383,47.57,131.23,131.11,171.91647595]
[1726062400588,47.57,131.23,131.12,4.1035]
[1726062400785,3.89688778,131.23,131.12,4.1035]
[1726062400978,3.8122,131.15,131.11,171.91647595]
[1726062401179,47.57,131.27,131.05,47.57]
[1726062401180,47.57,131.16,131.05,47.57]
[1726062401387,51.34145229,131.16,131.04,4.0137]
[1726062401598,3.8128,131.13,131.05,3.8148]
[1726062401882,3.76001441,131.15,131.04,4.0137]
[1726062402086,47.57,131.16,131.08,3.8142]
[1726062402087,51.3822,131.16,131.08,3.8142]
[1726062402276,51.30408853,131.16,131.05,47.57]
[1726062402475,47.57,131.16,131.05,47.57]
[1726062402878,51.3821,131.16,131.08,3.8142]
[1726062403081,47.57,131.16,131.08,3.8142]
[1726062403281,51.31667021,131.16,131.05,47.57]
[1726062403482,47.57,131.13,131.05,3.8148]
[1726062403883,47.57,131.13,131.04,4.0137]
[1726062404084,55.12887021,131.16,131.08,3.814]
[1726062404292,47.57,131.16,131.05,47.57]
[1726062404483,47.57,131.13,131.04,4.0137]
[1726062404685,47.57,131.11,131.04,4.0137]
[1726062405588,47.57,131.11,131.04,2.6029]
[1726062406988,47.57,131.11,131.04,6.418]
[1726062407594,51.3834,131.11,131.05,3.8151]
[1726062407893,47.57,131.11,131.04,2.6029]
[1726062408489,47.57,131.11,131.0,47.57]
[1726062408689,47.57,131.09,130.98,50.3073]
[1726062409290,3.8145,131.07,131.01,3.816]
[1726062409488,47.57,131.07,130.98,2.7373]
[1726062409689,3.815,131.06,130.98,2.7373]
[1726062409989,47.57,131.05,130.98,2.7373]
[1726062410195,51.3852,131.05,130.98,2.7373]
[1726062410394,3.88871199,131.09,130.83,7.6427]
[1726062410395,47.57,131.02,130.91,47.57]
[1726062410588,47.57,131.02,130.92,2.7737]
[1726062410785,47.57,131.0,130.92,2.7737]
[1726062411390,3.76918964,131.02,130.92,2.7737]
[1726062411391,51.33918964,131.02,130.92,2.7737]
[1726062411587,47.57,131.02,130.92,2.7737]
[1726062412094,47.57,131.04,130.93,47.57]
[1726062412591,3.8486214,131.05,130.93,47.57]
[1726062412789,47.57,131.05,130.94,47.57]
[1726062412997,3.8156,131.04,130.94,47.57]
[1726062413185,47.57,131.07,130.94,47.57]
[1726062414294,47.57,131.03,130.93,47.57]
[1726062414890,47.57,131.08,130.9,1.2995]